[Event "Titled Tuesday Blitz May 4 2021"]
[White "Lazavik, Denis"]
[Black "Prithu Gupta"]
[WhiteFideId "13515110"]
[BlackFideId "46618546"]
[WhiteElo "2436"]
[BlackElo "1775"]
[Result "1-0"]
[Round "09"]
[TimeControl "180+1"]
[Date "2021.05.04"]
[WhiteClock "0:00:19"]
[BlackClock "0:00:08"]

1. d4 {[%clk 0:03:00]}  Nf6 {[%clk 0:02:54]} 2. c4 {[%clk 0:03:01]}  e6 {[%clk 0:02:42]} 3. Nf3 {[%clk 0:03:01]}  Bb4+ {[%clk 0:02:41]} 4. Bd2 {[%clk 0:03:00]}  a5 {[%clk 0:02:41]} 5. g3 {[%clk 0:02:59]}  O-O {[%clk 0:02:41]} 6. Bg2 {[%clk 0:02:59]}  d5 {[%clk 0:02:41]} 7. Qc2 {[%clk 0:02:58]}  c6 {[%clk 0:02:39]} 8. O-O {[%clk 0:02:56]}  b6 {[%clk 0:02:39]} 9. Bf4 {[%clk 0:02:46]}  Bd6 {[%clk 0:02:29]} 10. Bxd6 {[%clk 0:02:37]}  Qxd6 {[%clk 0:02:30]} 11. Nbd2 {[%clk 0:02:37]}  Nbd7 {[%clk 0:02:28]} 12. e4 {[%clk 0:02:30]}  dxe4 {[%clk 0:02:28]} 13. Nxe4 {[%clk 0:02:31]}  Nxe4 {[%clk 0:02:26]} 14. Qxe4 {[%clk 0:02:32]}  Ba6 {[%clk 0:02:25]} 15. Rac1 {[%clk 0:02:25]}  c5 {[%clk 0:02:15]} 16. Rfd1 {[%clk 0:02:21]}  Nf6 {[%clk 0:02:02]} 17. Qe5 {[%clk 0:02:14]}  Qe7 {[%clk 0:01:20]} 18. d5 {[%clk 0:02:00]}  Bb7 {[%clk 0:01:13]} 19. Re1 {[%clk 0:00:59]}  Rae8 {[%clk 0:01:10]} 20. Rcd1 {[%clk 0:00:55]}  b5 {[%clk 0:00:34]} 21. d6 {[%clk 0:00:46]}  Qd7 {[%clk 0:00:33]} 22. Qxc5 {[%clk 0:00:47]}  Bxf3 {[%clk 0:00:25]} 23. Bxf3 {[%clk 0:00:46]}  bxc4 {[%clk 0:00:26]} 24. Qxc4 {[%clk 0:00:43]}  Rb8 {[%clk 0:00:22]} 25. b3 {[%clk 0:00:40]}  Rfc8 {[%clk 0:00:21]} 26. Qa6 {[%clk 0:00:40]}  Rc2 {[%clk 0:00:16]} 27. Qxa5 {[%clk 0:00:38]}  Rd8 {[%clk 0:00:12]} 28. Rd2 {[%clk 0:00:35]}  Rxd2 {[%clk 0:00:12]} 29. Qxd2 {[%clk 0:00:36]}  Qxd6 {[%clk 0:00:12]} 30. Qxd6 {[%clk 0:00:36]}  Rxd6 {[%clk 0:00:13]} 31. Ra1 {[%clk 0:00:33]}  Kf8 {[%clk 0:00:13]} 32. a4 {[%clk 0:00:30]}  Rd3 {[%clk 0:00:13]} 33. Kg2 {[%clk 0:00:30]}  Rxb3 {[%clk 0:00:13]} 34. a5 {[%clk 0:00:31]}  Nd5 {[%clk 0:00:10]} 35. a6 {[%clk 0:00:21]}  Nb6 {[%clk 0:00:07]} 36. a7 {[%clk 0:00:20]}  Ke7 {[%clk 0:00:08]} 37. Ra6 {[%clk 0:00:19]} 1-0


[Site "https://www.chess.com"]

[Event "Titled Tuesday Blitz May 4 2021"]
[White "Lehtosaari, Mauri"]
[Black "Sokolov, Andrey M."]
[WhiteFideId "501999"]
[BlackFideId "4171438"]
[WhiteElo "2402"]
[BlackElo "2349"]
[Result "1-0"]
[Round "09"]
[TimeControl "180+1"]
[Date "2021.05.04"]
[WhiteClock "0:00:40"]
[BlackClock "0:00:19"]

1. d4 {[%clk 0:03:00]}  Nf6 {[%clk 0:02:59]} 2. Nf3 {[%clk 0:03:00]}  d5 {[%clk 0:02:58]} 3. Bg5 {[%clk 0:03:00]}  Ne4 {[%clk 0:02:57]} 4. Bf4 {[%clk 0:03:00]}  Bf5 {[%clk 0:02:54]} 5. c4 {[%clk 0:02:59]}  c6 {[%clk 0:02:52]} 6. Nc3 {[%clk 0:02:59]}  e6 {[%clk 0:02:50]} 7. Qb3 {[%clk 0:02:59]}  Qb6 {[%clk 0:02:48]} 8. c5 {[%clk 0:02:59]}  Qxb3 {[%clk 0:02:47]} 9. axb3 {[%clk 0:03:00]}  Na6 {[%clk 0:02:32]} 10. Ra4 {[%clk 0:02:50]}  f6 {[%clk 0:02:17]} 11. e3 {[%clk 0:02:43]}  e5 {[%clk 0:02:16]} 12. Bxa6 {[%clk 0:02:28]}  bxa6 {[%clk 0:02:15]} 13. Bg3 {[%clk 0:02:21]}  Rb8 {[%clk 0:01:51]} 14. Nxe4 {[%clk 0:01:49]}  Bxe4 {[%clk 0:01:50]} 15. Rxa6 {[%clk 0:01:24]}  Rxb3 {[%clk 0:01:46]} 16. Rxa7 {[%clk 0:01:23]}  Rxb2 {[%clk 0:01:37]} 17. O-O {[%clk 0:01:23]}  Bxf3 {[%clk 0:01:30]} 18. gxf3 {[%clk 0:01:24]}  exd4 {[%clk 0:01:13]} 19. exd4 {[%clk 0:01:25]}  Re2 {[%clk 0:01:04]} 20. Rb1 {[%clk 0:01:20]}  Re7 {[%clk 0:00:56]} 21. Rb8+ {[%clk 0:01:06]}  Kf7 {[%clk 0:00:55]} 22. Raa8 {[%clk 0:01:06]}  h5 {[%clk 0:00:40]} 23. h4 {[%clk 0:01:00]}  g5 {[%clk 0:00:31]} 24. Bd6 {[%clk 0:00:52]}  Re1+ {[%clk 0:00:29]} 25. Kg2 {[%clk 0:00:52]}  Bxd6 {[%clk 0:00:25]} 26. Rxh8 {[%clk 0:00:52]}  Bf4 {[%clk 0:00:25]} 27. Rxh5 {[%clk 0:00:43]}  Kg6 {[%clk 0:00:20]} 28. Rhh8 {[%clk 0:00:41]}  Rd1 {[%clk 0:00:19]} 29. h5+ {[%clk 0:00:40]}  Kf5 {[%clk 0:00:19]} 30. h6 {[%clk 0:00:40]} 1-0


[Site "https://www.chess.com"]

[Event "Titled Tuesday Blitz May 4 2021"]
[White "Luberanski, Jakub"]
[Black "Morris-Suzuki, Sophie"]
[WhiteFideId "21830509"]
[BlackFideId "30922615"]
[WhiteElo "2078"]
[BlackElo "2376"]
[Result "1-0"]
[Round "09"]
[TimeControl "180+1"]
[Date "2021.05.04"]
[WhiteClock "0:00:15"]
[BlackClock "0:00:05"]

1. e4 {[%clk 0:02:57]}  c5 {[%clk 0:03:00]} 2. Nf3 {[%clk 0:02:53]}  e6 {[%clk 0:03:01]} 3. g3 {[%clk 0:02:51]}  d5 {[%clk 0:03:01]} 4. exd5 {[%clk 0:02:52]}  exd5 {[%clk 0:03:00]} 5. d4 {[%clk 0:02:53]}  Nf6 {[%clk 0:03:00]} 6. Bg2 {[%clk 0:02:53]}  Be7 {[%clk 0:03:00]} 7. O-O {[%clk 0:02:53]}  O-O {[%clk 0:03:01]} 8. dxc5 {[%clk 0:02:52]}  Bxc5 {[%clk 0:03:00]} 9. Bg5 {[%clk 0:02:52]}  h6 {[%clk 0:02:57]} 10. Bxf6 {[%clk 0:02:52]}  Qxf6 {[%clk 0:02:58]} 11. Qxd5 {[%clk 0:02:52]}  Qxb2 {[%clk 0:02:57]} 12. Nbd2 {[%clk 0:02:26]}  Qb6 {[%clk 0:02:57]} 13. Rab1 {[%clk 0:02:11]}  Qc7 {[%clk 0:02:57]} 14. Nb3 {[%clk 0:02:07]}  Bb6 {[%clk 0:02:56]} 15. Rfd1 {[%clk 0:01:57]}  Be6 {[%clk 0:02:56]} 16. Qe5 {[%clk 0:01:51]}  Qxc2 {[%clk 0:02:53]} 17. Nfd4 {[%clk 0:01:43]}  Qc8 {[%clk 0:02:41]} 18. Rbc1 {[%clk 0:01:26]}  Nc6 {[%clk 0:02:31]} 19. Nxc6 {[%clk 0:01:02]}  bxc6 {[%clk 0:02:31]} 20. Rxc6 {[%clk 0:01:02]}  Qa6 {[%clk 0:02:25]} 21. Rxe6 {[%clk 0:01:02]}  fxe6 {[%clk 0:02:19]} 22. Bxa8 {[%clk 0:00:54]}  Rxa8 {[%clk 0:01:59]} 23. Qxe6+ {[%clk 0:00:54]}  Kh8 {[%clk 0:01:59]} 24. Nc5 {[%clk 0:00:39]}  Qa3 {[%clk 0:01:33]} 25. Nd7 {[%clk 0:00:34]}  Qf3 {[%clk 0:01:24]} 26. Rd2 {[%clk 0:00:20]}  Ba5 {[%clk 0:01:14]} 27. Ne5 {[%clk 0:00:17]}  Qb7 {[%clk 0:00:58]} 28. Nf7+ {[%clk 0:00:16]}  Kh7 {[%clk 0:00:57]} 29. Qf5+ {[%clk 0:00:16]}  Kg8 {[%clk 0:00:57]} 30. Nxh6+ {[%clk 0:00:17]}  gxh6 {[%clk 0:00:56]} 31. Qxa5 {[%clk 0:00:18]}  Qb1+ {[%clk 0:00:54]} 32. Kg2 {[%clk 0:00:17]}  Qb7+ {[%clk 0:00:55]} 33. f3 {[%clk 0:00:17]}  Rc8 {[%clk 0:00:50]} 34. Qd5+ {[%clk 0:00:17]}  Qxd5 {[%clk 0:00:50]} 35. Rxd5 {[%clk 0:00:18]}  Rc2+ {[%clk 0:00:50]} 36. Kh3 {[%clk 0:00:18]}  Rxa2 {[%clk 0:00:51]} 37. Rd6 {[%clk 0:00:18]}  Kg7 {[%clk 0:00:51]} 38. g4 {[%clk 0:00:18]}  a5 {[%clk 0:00:50]} 39. Kg3 {[%clk 0:00:18]}  a4 {[%clk 0:00:49]} 40. Ra6 {[%clk 0:00:19]}  a3 {[%clk 0:00:47]} 41. h4 {[%clk 0:00:19]}  Ra1 {[%clk 0:00:45]} 42. Kf4 {[%clk 0:00:19]}  a2 {[%clk 0:00:36]} 43. Ra7+ {[%clk 0:00:20]}  Kf6 {[%clk 0:00:33]} 44. Ra6+ {[%clk 0:00:20]}  Kg7 {[%clk 0:00:33]} 45. h5 {[%clk 0:00:20]}  Kf7 {[%clk 0:00:29]} 46. Ra7+ {[%clk 0:00:20]}  Ke6 {[%clk 0:00:29]} 47. Ra6+ {[%clk 0:00:21]}  Kd5 {[%clk 0:00:28]} 48. Kf5 {[%clk 0:00:19]}  Rf1 {[%clk 0:00:18]} 49. Rxa2 {[%clk 0:00:17]}  Rxf3+ {[%clk 0:00:19]} 50. Kg6 {[%clk 0:00:18]}  Rg3 {[%clk 0:00:13]} 51. Ra4 {[%clk 0:00:17]}  Ke5 {[%clk 0:00:09]} 52. Kxh6 {[%clk 0:00:17]}  Kf6 {[%clk 0:00:09]} 53. Rf4+ {[%clk 0:00:16]}  Ke5 {[%clk 0:00:07]} 54. Kg5 {[%clk 0:00:16]}  Rh3 {[%clk 0:00:06]} 55. Rf5+ {[%clk 0:00:16]}  Ke6 {[%clk 0:00:07]} 56. Rf6+ {[%clk 0:00:17]}  Ke7 {[%clk 0:00:07]} 57. Rf5 {[%clk 0:00:17]}  Ke6 {[%clk 0:00:07]} 58. Ra5 {[%clk 0:00:17]}  Kf7 {[%clk 0:00:06]} 59. Kf5 {[%clk 0:00:16]}  Rf3+ {[%clk 0:00:07]} 60. Kg5 {[%clk 0:00:17]}  Rh3 {[%clk 0:00:07]} 61. Ra7+ {[%clk 0:00:17]}  Ke6 {[%clk 0:00:07]} 62. h6 {[%clk 0:00:17]}  Rh1 {[%clk 0:00:07]} 63. h7 {[%clk 0:00:17]}  Rh2 {[%clk 0:00:07]} 64. Kg6 {[%clk 0:00:17]}  Ke5 {[%clk 0:00:06]} 65. g5 {[%clk 0:00:17]}  Kf4 {[%clk 0:00:06]} 66. Ra4+ {[%clk 0:00:16]}  Ke5 {[%clk 0:00:05]} 67. Ra5+ {[%clk 0:00:17]}  Kf4 {[%clk 0:00:05]} 68. Rf5+ {[%clk 0:00:16]}  Kg4 {[%clk 0:00:05]} 69. Rf8 {[%clk 0:00:15]} 1-0


[Site "https://www.chess.com"]

[Event "Titled Tuesday Blitz May 4 2021"]
[White "Martin, Lewis"]
[Black "Kilpatrick, Callum"]
[WhiteFideId "410551"]
[BlackFideId "414425"]
[WhiteElo "2145"]
[BlackElo "2466"]
[Result "0-1"]
[Round "09"]
[TimeControl "180+1"]
[Date "2021.05.04"]
[WhiteClock "0:01:14"]
[BlackClock "0:01:02"]

1. e4 {[%clk 0:03:00]}  e5 {[%clk 0:02:18]} 2. Nf3 {[%clk 0:03:00]}  Nc6 {[%clk 0:02:17]} 3. Bb5 {[%clk 0:03:00]}  Nf6 {[%clk 0:02:15]} 4. d3 {[%clk 0:02:59]}  d6 {[%clk 0:02:15]} 5. O-O {[%clk 0:02:58]}  g6 {[%clk 0:02:15]} 6. c3 {[%clk 0:02:58]}  Bg7 {[%clk 0:02:15]} 7. Re1 {[%clk 0:02:57]}  O-O {[%clk 0:02:16]} 8. h3 {[%clk 0:02:57]}  Bd7 {[%clk 0:02:15]} 9. Nbd2 {[%clk 0:02:57]}  Nh5 {[%clk 0:02:10]} 10. Nf1 {[%clk 0:02:56]}  a6 {[%clk 0:02:10]} 11. Ba4 {[%clk 0:02:55]}  Nf4 {[%clk 0:02:04]} 12. Bxf4 {[%clk 0:02:50]}  exf4 {[%clk 0:02:04]} 13. d4 {[%clk 0:02:45]}  Qe7 {[%clk 0:02:00]} 14. e5 {[%clk 0:02:11]}  dxe5 {[%clk 0:01:59]} 15. d5 {[%clk 0:02:11]}  Nb8 {[%clk 0:01:52]} 16. Bxd7 {[%clk 0:01:50]}  Nxd7 {[%clk 0:01:51]} 17. Qa4 {[%clk 0:01:50]}  Qd6 {[%clk 0:01:46]} 18. Rad1 {[%clk 0:01:48]}  Nc5 {[%clk 0:01:31]} 19. Qc2 {[%clk 0:01:43]}  e4 {[%clk 0:01:25]} 20. Ng5 {[%clk 0:01:40]}  f5 {[%clk 0:01:18]} 21. b4 {[%clk 0:01:40]}  Nd3 {[%clk 0:01:15]} 22. Rxd3 {[%clk 0:01:36]}  exd3 {[%clk 0:01:15]} 23. Qxd3 {[%clk 0:01:36]}  Rfe8 {[%clk 0:01:04]} 24. Ne6 {[%clk 0:01:32]}  Rad8 {[%clk 0:01:03]} 25. Nxd8 {[%clk 0:01:15]}  Rxe1 {[%clk 0:01:03]} 26. Ne6 {[%clk 0:01:14]}  Rxe6 {[%clk 0:01:02]} 0-1


[Site "https://www.chess.com"]

[Event "Titled Tuesday Blitz May 4 2021"]
[White "Mezentsev, Ivan"]
[Black "Gonzalez, Francisco Silva"]
[WhiteFideId "13706195"]
[BlackFideId "1512285"]
[WhiteElo "2295"]
[BlackElo "2159"]
[Result "1-0"]
[Round "09"]
[TimeControl "180+1"]
[Date "2021.05.04"]
[WhiteClock "0:01:54"]
[BlackClock "0:02:33"]

1. c4 {[%clk 0:03:00]}  e6 {[%clk 0:02:59]} 2. Nf3 {[%clk 0:02:59]}  d5 {[%clk 0:02:58]} 3. b3 {[%clk 0:02:59]}  c6 {[%clk 0:02:57]} 4. Bb2 {[%clk 0:02:59]}  Nf6 {[%clk 0:02:57]} 5. g3 {[%clk 0:02:59]}  Nbd7 {[%clk 0:02:56]} 6. Bg2 {[%clk 0:02:59]}  b6 {[%clk 0:02:56]} 7. O-O {[%clk 0:02:58]}  c5 {[%clk 0:02:56]} 8. d4 {[%clk 0:02:56]}  Bb7 {[%clk 0:02:56]} 9. Ne5 {[%clk 0:02:51]}  Rb8 {[%clk 0:02:54]} 10. e3 {[%clk 0:02:32]}  cxd4 {[%clk 0:02:54]} 11. exd4 {[%clk 0:02:31]}  Qc7 {[%clk 0:02:51]} 12. Nc3 {[%clk 0:02:22]}  a6 {[%clk 0:02:49]} 13. cxd5 {[%clk 0:02:19]}  Nxd5 {[%clk 0:02:45]} 14. Nxd5 {[%clk 0:02:18]}  Bxd5 {[%clk 0:02:44]} 15. Bxd5 {[%clk 0:02:16]}  exd5 {[%clk 0:02:44]} 16. Rc1 {[%clk 0:02:16]}  Qb7 {[%clk 0:02:42]} 17. Re1 {[%clk 0:02:12]}  Nxe5 {[%clk 0:02:41]} 18. Rxe5+ {[%clk 0:02:11]}  Kd8 {[%clk 0:02:40]} 19. Qf3 {[%clk 0:02:09]}  Bd6 {[%clk 0:02:38]} 20. Rxd5 {[%clk 0:02:06]}  Ke7 {[%clk 0:02:38]} 21. Qe3+ {[%clk 0:01:57]}  Kf8 {[%clk 0:02:37]} 22. Rxd6 {[%clk 0:01:56]}  Qg2+ {[%clk 0:02:36]} 23. Kxg2 {[%clk 0:01:55]}  Rc8 {[%clk 0:02:33]} 24. Rxc8# {[%clk 0:01:54]} 1-0


[Site "https://www.chess.com"]

[Event "Titled Tuesday Blitz May 4 2021"]
[White "Mohota, Nisha"]
[Black "Loy, Konstantin"]
[WhiteFideId "5004330"]
[BlackFideId "14122499"]
[WhiteElo "2117"]
[BlackElo "2084"]
[Result "1-0"]
[Round "09"]
[TimeControl "180+1"]
[Date "2021.05.04"]
[WhiteClock "0:01:19"]
[BlackClock "0:00:01"]

1. b3 {[%clk 0:03:00]}  e5 {[%clk 0:02:59]} 2. Bb2 {[%clk 0:03:01]}  d6 {[%clk 0:02:59]} 3. e3 {[%clk 0:03:00]}  Nf6 {[%clk 0:02:58]} 4. Nf3 {[%clk 0:02:59]}  g6 {[%clk 0:02:58]} 5. d4 {[%clk 0:02:55]}  e4 {[%clk 0:02:57]} 6. Nfd2 {[%clk 0:02:52]}  Bg7 {[%clk 0:02:58]} 7. c4 {[%clk 0:02:51]}  O-O {[%clk 0:02:57]} 8. Nc3 {[%clk 0:02:51]}  Re8 {[%clk 0:02:58]} 9. Be2 {[%clk 0:02:51]}  h5 {[%clk 0:02:55]} 10. Qc2 {[%clk 0:02:50]}  Bf5 {[%clk 0:02:55]} 11. O-O {[%clk 0:02:46]}  Nc6 {[%clk 0:02:55]} 12. h3 {[%clk 0:02:35]}  Nxd4 {[%clk 0:02:48]} 13. exd4 {[%clk 0:02:31]}  e3 {[%clk 0:02:48]} 14. Qd1 {[%clk 0:02:26]}  exd2 {[%clk 0:02:46]} 15. Qxd2 {[%clk 0:02:27]}  d5 {[%clk 0:02:44]} 16. c5 {[%clk 0:02:24]}  Ne4 {[%clk 0:02:38]} 17. Nxe4 {[%clk 0:02:23]}  Bxe4 {[%clk 0:02:39]} 18. Bd3 {[%clk 0:02:23]}  Qd7 {[%clk 0:02:35]} 19. Rfe1 {[%clk 0:02:18]}  Bxd3 {[%clk 0:02:11]} 20. Qxd3 {[%clk 0:02:17]}  c6 {[%clk 0:02:06]} 21. b4 {[%clk 0:02:16]}  Rxe1+ {[%clk 0:02:03]} 22. Rxe1 {[%clk 0:02:15]}  Re8 {[%clk 0:02:03]} 23. Rxe8+ {[%clk 0:02:06]}  Qxe8 {[%clk 0:02:03]} 24. Kf1 {[%clk 0:02:04]}  f5 {[%clk 0:01:57]} 25. h4 {[%clk 0:02:01]}  Kf7 {[%clk 0:01:48]} 26. a4 {[%clk 0:02:00]}  Qe4 {[%clk 0:01:47]} 27. Qxe4 {[%clk 0:01:58]}  dxe4 {[%clk 0:01:43]} 28. f3 {[%clk 0:01:45]}  Bf6 {[%clk 0:01:36]} 29. fxe4 {[%clk 0:01:43]}  fxe4 {[%clk 0:01:35]} 30. g3 {[%clk 0:01:42]}  Ke6 {[%clk 0:01:32]} 31. Ke2 {[%clk 0:01:40]}  Kd5 {[%clk 0:01:27]} 32. Ke3 {[%clk 0:01:40]}  Bg7 {[%clk 0:01:27]} 33. b5 {[%clk 0:01:38]}  a6 {[%clk 0:01:18]} 34. bxa6 {[%clk 0:01:36]}  bxa6 {[%clk 0:01:17]} 35. Ba1 {[%clk 0:01:24]}  Bh6+ {[%clk 0:01:13]} 36. Ke2 {[%clk 0:01:24]}  Kc4 {[%clk 0:00:58]} 37. Bb2 {[%clk 0:01:20]}  Kb3 {[%clk 0:00:17]} 38. d5 {[%clk 0:01:20]}  cxd5 {[%clk 0:00:01]} 39. c6 {[%clk 0:01:19]} 1-0


[Site "https://www.chess.com"]

[Event "Titled Tuesday Blitz May 4 2021"]
[White "Mortazavi, Ali"]
[Black "Salinas Herrera, Pablo"]
[WhiteFideId "401323"]
[BlackFideId "3407128"]
[WhiteElo "2339"]
[BlackElo "2541"]
[Result "0-1"]
[Round "09"]
[TimeControl "180+1"]
[Date "2021.05.04"]
[WhiteClock "0:00:01"]
[BlackClock "0:00:04"]

1. Nf3 {[%clk 0:03:00]}  g6 {[%clk 0:02:57]} 2. e4 {[%clk 0:03:00]}  d6 {[%clk 0:02:56]} 3. d4 {[%clk 0:02:59]}  Bg7 {[%clk 0:02:57]} 4. Nc3 {[%clk 0:02:58]}  Nf6 {[%clk 0:02:57]} 5. Be3 {[%clk 0:02:58]}  O-O {[%clk 0:02:56]} 6. Qd2 {[%clk 0:02:58]}  Ng4 {[%clk 0:02:56]} 7. Bg5 {[%clk 0:02:58]}  h6 {[%clk 0:02:52]} 8. h3 {[%clk 0:02:33]}  Nxf2 {[%clk 0:02:52]} 9. Qxf2 {[%clk 0:02:32]}  hxg5 {[%clk 0:02:52]} 10. Nxg5 {[%clk 0:02:33]}  Bh6 {[%clk 0:02:10]} 11. Qh4 {[%clk 0:02:08]}  Kg7 {[%clk 0:02:09]} 12. Bc4 {[%clk 0:02:00]}  e5 {[%clk 0:01:54]} 13. Nf3 {[%clk 0:01:59]}  Qxh4+ {[%clk 0:01:53]} 14. Nxh4 {[%clk 0:01:59]}  exd4 {[%clk 0:01:49]} 15. Nb5 {[%clk 0:01:54]}  Na6 {[%clk 0:01:47]} 16. Nxd4 {[%clk 0:01:39]}  Nc5 {[%clk 0:01:46]} 17. Rd1 {[%clk 0:01:21]}  Nxe4 {[%clk 0:01:39]} 18. O-O {[%clk 0:01:19]}  c6 {[%clk 0:01:26]} 19. Kh2 {[%clk 0:01:00]}  d5 {[%clk 0:01:24]} 20. Bd3 {[%clk 0:00:59]}  Nc5 {[%clk 0:01:19]} 21. g3 {[%clk 0:00:40]}  Bd7 {[%clk 0:01:17]} 22. Rde1 {[%clk 0:00:32]}  Rae8 {[%clk 0:01:11]} 23. Nhf3 {[%clk 0:00:30]}  Be3 {[%clk 0:01:01]} 24. Nb3 {[%clk 0:00:24]}  Na4 {[%clk 0:00:33]} 25. Re2 {[%clk 0:00:15]}  Rh8 {[%clk 0:00:31]} 26. h4 {[%clk 0:00:14]}  Nxb2 {[%clk 0:00:27]} 27. Rfe1 {[%clk 0:00:13]}  Bb6 {[%clk 0:00:27]} 28. Ne5 {[%clk 0:00:11]}  Nxd3 {[%clk 0:00:19]} 29. cxd3 {[%clk 0:00:11]}  Bf5 {[%clk 0:00:17]} 30. g4 {[%clk 0:00:09]}  Rxe5 {[%clk 0:00:12]} 31. Rxe5 {[%clk 0:00:08]}  Rxh4+ {[%clk 0:00:13]} 32. Kg3 {[%clk 0:00:09]}  Rxg4+ {[%clk 0:00:13]} 33. Kf3 {[%clk 0:00:09]}  Rh4 {[%clk 0:00:13]} 34. Re7 {[%clk 0:00:09]}  Rh3+ {[%clk 0:00:13]} 35. Kg2 {[%clk 0:00:09]}  Rxd3 {[%clk 0:00:14]} 36. Rxb7 {[%clk 0:00:09]}  Be4+ {[%clk 0:00:13]} 37. Kh2 {[%clk 0:00:08]}  c5 {[%clk 0:00:09]} 38. Rf1 {[%clk 0:00:07]}  Bf5 {[%clk 0:00:09]} 39. Re1 {[%clk 0:00:07]}  c4 {[%clk 0:00:05]} 40. Nc1 {[%clk 0:00:07]}  Rd2+ {[%clk 0:00:06]} 41. Kg3 {[%clk 0:00:06]}  Bf2+ {[%clk 0:00:05]} 42. Kf3 {[%clk 0:00:06]}  Bxe1 {[%clk 0:00:06]} 43. Ke3 {[%clk 0:00:02]}  Rc2 {[%clk 0:00:06]} 44. Ne2 {[%clk 0:00:03]}  Rxa2 {[%clk 0:00:04]} 45. Nd4 {[%clk 0:00:03]}  Bg4 {[%clk 0:00:04]} 46. Kf4 {[%clk 0:00:03]}  Bh3 {[%clk 0:00:03]} 47. Nc6 {[%clk 0:00:01]}  Bd2+ {[%clk 0:00:02]} 48. Kg3 {[%clk 0:00:01]}  Be6 {[%clk 0:00:03]} 49. Nd8 {[%clk 0:00:01]}  Be1+ {[%clk 0:00:03]} 50. Kf3 {[%clk 0:00:01]}  Kf6 {[%clk 0:00:04]} 0-1


[Site "https://www.chess.com"]

[Event "Titled Tuesday Blitz May 4 2021"]
[White "Nakamura, Hikaru"]
[Black "Yilmaz, Mustafa"]
[WhiteFideId "2016192"]
[BlackFideId "6302718"]
[WhiteElo "2900"]
[BlackElo "2518"]
[Result "1-0"]
[Round "09"]
[TimeControl "180+1"]
[Date "2021.05.04"]
[WhiteClock "0:01:42"]
[BlackClock "0:00:31"]

1. Nf3 {[%clk 0:03:00]}  d5 {[%clk 0:02:59]} 2. b3 {[%clk 0:02:59]}  Nf6 {[%clk 0:02:55]} 3. Bb2 {[%clk 0:03:00]}  g6 {[%clk 0:02:55]} 4. d4 {[%clk 0:02:59]}  Bg7 {[%clk 0:02:55]} 5. e3 {[%clk 0:03:00]}  O-O {[%clk 0:02:55]} 6. Nbd2 {[%clk 0:02:59]}  c5 {[%clk 0:02:55]} 7. dxc5 {[%clk 0:02:59]}  Qa5 {[%clk 0:02:50]} 8. a3 {[%clk 0:02:59]}  Qxc5 {[%clk 0:02:50]} 9. b4 {[%clk 0:03:00]}  Qc7 {[%clk 0:02:44]} 10. c4 {[%clk 0:03:00]}  Nc6 {[%clk 0:02:10]} 11. Rc1 {[%clk 0:02:59]}  dxc4 {[%clk 0:02:04]} 12. Bxc4 {[%clk 0:02:59]}  a6 {[%clk 0:01:55]} 13. O-O {[%clk 0:02:55]}  Qb6 {[%clk 0:01:53]} 14. h3 {[%clk 0:02:46]}  a5 {[%clk 0:01:50]} 15. b5 {[%clk 0:02:45]}  Na7 {[%clk 0:01:49]} 16. Bd4 {[%clk 0:02:37]}  Qd6 {[%clk 0:01:47]} 17. Qb3 {[%clk 0:02:30]}  Bf5 {[%clk 0:01:25]} 18. Rfd1 {[%clk 0:02:18]}  a4 {[%clk 0:01:25]} 19. Qb2 {[%clk 0:02:12]}  Nc8 {[%clk 0:01:14]} 20. e4 {[%clk 0:02:08]}  Bxh3 {[%clk 0:01:04]} 21. e5 {[%clk 0:02:02]}  Qd7 {[%clk 0:01:04]} 22. exf6 {[%clk 0:02:03]}  Qg4 {[%clk 0:01:04]} 23. Bf1 {[%clk 0:02:01]}  exf6 {[%clk 0:01:03]} 24. Kh2 {[%clk 0:01:55]}  Nd6 {[%clk 0:00:49]} 25. gxh3 {[%clk 0:01:53]}  Qf4+ {[%clk 0:00:50]} 26. Kh1 {[%clk 0:01:53]}  Nf5 {[%clk 0:00:50]} 27. Rc4 {[%clk 0:01:47]}  Rfd8 {[%clk 0:00:46]} 28. Bb6 {[%clk 0:01:41]}  Rxd2 {[%clk 0:00:31]} 29. Nxd2 {[%clk 0:01:42]} 1-0


[Site "https://www.chess.com"]

[Event "Titled Tuesday Blitz May 4 2021"]
[White "Nitin, S."]
[Black "Region_07"]
[WhiteFideId "5018277"]
[WhiteElo "2431"]
[BlackElo "2388"]
[Result "1-0"]
[Round "09"]
[TimeControl "180+1"]
[Date "2021.05.04"]
[WhiteClock "0:00:54"]
[BlackClock "0:00:14"]

1. e4 {[%clk 0:03:00]}  Nc6 {[%clk 0:02:59]} 2. Nc3 {[%clk 0:03:00]}  e6 {[%clk 0:02:58]} 3. d4 {[%clk 0:02:59]}  Bb4 {[%clk 0:02:57]} 4. d5 {[%clk 0:02:59]}  exd5 {[%clk 0:02:57]} 5. exd5 {[%clk 0:02:59]}  Qe7+ {[%clk 0:02:55]} 6. Ne2 {[%clk 0:02:57]}  Ne5 {[%clk 0:02:55]} 7. Bf4 {[%clk 0:02:55]}  Bxc3+ {[%clk 0:02:46]} 8. bxc3 {[%clk 0:02:53]}  d6 {[%clk 0:02:46]} 9. Qd4 {[%clk 0:02:46]}  Nf6 {[%clk 0:02:36]} 10. O-O-O {[%clk 0:02:38]}  O-O {[%clk 0:02:32]} 11. Ng3 {[%clk 0:02:35]}  Bd7 {[%clk 0:01:56]} 12. h4 {[%clk 0:02:12]}  Rfe8 {[%clk 0:01:41]} 13. h5 {[%clk 0:02:07]}  h6 {[%clk 0:01:40]} 14. f3 {[%clk 0:02:06]}  a6 {[%clk 0:01:26]} 15. Re1 {[%clk 0:01:54]}  Qf8 {[%clk 0:00:48]} 16. Bd3 {[%clk 0:01:50]}  Nxd3+ {[%clk 0:00:43]} 17. cxd3 {[%clk 0:01:49]}  Rxe1+ {[%clk 0:00:44]} 18. Rxe1 {[%clk 0:01:50]}  Re8 {[%clk 0:00:44]} 19. Ne4 {[%clk 0:01:49]}  Nxh5 {[%clk 0:00:30]} 20. Bd2 {[%clk 0:01:41]}  f5 {[%clk 0:00:30]} 21. Nf2 {[%clk 0:01:37]}  Rxe1+ {[%clk 0:00:31]} 22. Bxe1 {[%clk 0:01:38]}  Qe7 {[%clk 0:00:27]} 23. Bd2 {[%clk 0:01:38]}  Qe2 {[%clk 0:00:25]} 24. g4 {[%clk 0:01:32]}  Ng3 {[%clk 0:00:20]} 25. gxf5 {[%clk 0:01:13]}  Bxf5 {[%clk 0:00:19]} 26. Ne4 {[%clk 0:01:09]}  Qxf3 {[%clk 0:00:19]} 27. Nxg3 {[%clk 0:01:04]}  Qxg3 {[%clk 0:00:19]} 28. Kc2 {[%clk 0:01:03]}  Qf3 {[%clk 0:00:18]} 29. Qc4 {[%clk 0:01:01]}  h5 {[%clk 0:00:17]} 30. Bg5 {[%clk 0:00:58]}  Qe2+ {[%clk 0:00:16]} 31. Kb3 {[%clk 0:00:54]}  Bxd3 {[%clk 0:00:14]} 32. Qxc7 {[%clk 0:00:54]}  Qc2+ {[%clk 0:00:14]} 33. Ka3 {[%clk 0:00:55]}  Qc1+ {[%clk 0:00:14]} 34. Bxc1 {[%clk 0:00:54]} 1-0


[Site "https://www.chess.com"]